bitfinex/quotes_ETHUSD_20241018
["timestamp","ask_amount","ask_price","bid_price","bid_amount"]
[1729280414758,0.06753783,2650.2,2649.9,0.55]
[1729280414948,1.5968078,2650.3,2649.9,0.55]
[1729280415453,0.7818078,2650.2,2649.9,0.55]
[1729280415658,0.06753783,2650.2,2649.9,4.3001]
[1729280416083,1.5968078,2650.3,2649.9,4.3001]
[1729280416684,0.06753783,2650.2,2649.9,4.3001]
[1729280416856,0.06753783,2650.2,2649.9,0.55]
[1729280417063,1.5968078,2650.3,2649.9,0.55]
[1729280417247,0.06747279,2650.1,2649.9,0.55]
[1729280417453,0.7818078,2650.2,2649.9,0.55]
[1729280417654,0.06740774,2650.0,2649.9,0.55]
[1729280417848,1.5968078,2650.3,2649.9,0.55]
[1729280418053,0.06740774,2650.0,2649.9,0.55]
[1729280418266,1.5968078,2650.3,2649.8,1.38211673]
[1729280418550,1.17299263,2650.4,2649.8,1.38211673]
[1729280418551,0.7915,2650.1,2649.8,0.79186493]
[1729280418748,0.06740774,2650.0,2649.8,0.79186493]
[1729280419863,0.06740774,2650.0,2649.6,0.55]
[1729280420268,0.06740774,2650.0,2649.5,1.37498089]
[1729280420994,0.788,2649.9,2649.5,0.59028089]
[1729280421202,0.788,2649.9,2648.9,0.28202774]
[1729280421203,0.788,2649.7,2648.9,0.28202774]
[1729280421350,0.06490212,2649.6,2648.9,0.28202774]
[1729280421554,0.788,2649.5,2648.9,0.28190361]
[1729280421790,0.788,2649.5,2648.8,1.38430673]
[1729280421791,0.06477198,2649.4,2648.8,1.38430673]
[1729280422199,0.06477198,2649.4,2648.9,0.04112306]
[1729280422556,0.06477198,2649.4,2649.3,3.0]
[1729280422952,0.06477198,2649.4,2648.9,0.04112306]
[1729280423264,0.06477198,2649.4,2649.3,3.0]
[1729280423669,0.06477198,2649.4,2649.2,0.7857]
[1729280423990,0.0645354,2649.3,2649.2,0.7857]
[1729280424190,0.7662,2649.7,2649.2,1.3357]
[1729280424353,0.06262915,2649.6,2649.2,1.3357]
[1729280427100,0.06262915,2649.6,2649.1,0.55]
[1729280428352,0.06262915,2649.6,2649.3,3.0]
[1729280428782,0.06262915,2649.6,2649.1,0.55]
[1729280429703,0.06262915,2649.6,2649.4,3.0]
[1729280429858,0.06262915,2649.6,2649.5,0.55]
[1729280430209,0.8067,2650.4,2650.1,3.0]
[1729280430370,0.05886667,2650.3,2649.9,0.55]
[1729280430758,0.7818078,2651.0,2650.1,0.55]
[1729280431108,0.05933432,2650.9,2650.1,0.55]
[1729280431307,0.26747227,2650.9,2650.1,0.55]
[1729280431658,0.05933432,2650.9,2650.1,0.55]
[1729280432202,0.10283287,2650.9,2650.1,0.55]
[1729280436985,0.10283287,2650.9,2650.3,0.55]
[1729280438222,0.10283287,2650.9,2650.5,0.55]
[1729280438431,0.7944,2651.2,2650.5,0.55]
[1729280438596,0.10317556,2651.1,2650.5,0.55]
[1729280439207,0.10317556,2651.1,2650.5,3.55]
[1729280439503,0.10317556,2651.1,2650.5,0.55]
[1729280442719,0.10317556,2651.1,2650.0,0.7554]
[1729280442720,0.773,2651.0,2650.0,0.7554]
[1729280443030,0.10309971,2650.9,2650.0,0.7554]
[1729280444005,0.10309971,2650.9,2650.1,0.55]
[1729280446624,0.08612563,2650.9,2650.1,0.55]
[1729280448298,0.08612563,2650.9,2650.0,1.3705]
[1729280448641,0.08612563,2650.9,2650.2,0.55]
[1729280448930,0.08612563,2650.9,2650.1,0.8205]
[1729280449540,0.08612563,2650.9,2650.2,0.55]
[1729280450494,0.08612563,2650.9,2650.4,0.55]
[1729280452732,0.08612563,2650.9,2650.6,0.55]
[1729280453128,0.0399833,2651.3,2650.6,0.55]
[1729280453341,0.09863882,2650.8,2650.6,0.55]
[1729280453640,0.0399833,2651.3,2650.9,1.3033]
[1729280454340,0.0989385,2651.2,2650.9,0.7533]
[1729280454503,0.0989385,2651.2,2650.9,3.7533]
[1729280454704,0.0399833,2651.3,2650.9,0.7533]
[1729280455343,0.0989385,2651.2,2650.9,0.7533]
[1729280455699,0.0399833,2651.3,2650.9,0.7533]
[1729280455903,0.09887515,2651.1,2650.9,0.7533]
[1729280456103,0.0399833,2651.3,2650.9,0.7533]
[1729280456322,0.09881179,2651.0,2650.9,0.7533]
[1729280456523,0.0399833,2651.3,2650.9,0.7533]
[1729280456745,0.09881179,2651.0,2650.9,0.7533]
[1729280456973,0.0399833,2651.3,2650.9,0.7533]
[1729280457133,0.09881179,2651.0,2650.9,0.7533]
[1729280457307,0.0399833,2651.3,2650.9,0.7533]
[1729280457510,0.09881179,2651.0,2650.9,0.7533]
[1729280457734,0.0399833,2651.3,2650.9,0.7533]
[1729280457908,0.09881179,2651.0,2650.9,1.3033]
[1729280458235,0.0399833,2651.3,2651.0,0.55]
[1729280459058,0.0399833,2651.3,2650.9,0.7533]
[1729280461348,0.7808,2651.2,2650.2,0.7582]
[1729280461707,0.0399833,2651.3,2650.3,0.7582]
[1729280462317,0.0399833,2651.3,2650.3,1.21445757]
[1729280462634,0.0399833,2651.3,2651.1,3.0]
[1729280462946,0.0399833,2651.3,2650.5,0.55]
[1729280464128,0.0399833,2651.3,2650.5,0.8232]
[1729280464339,0.0399833,2651.3,2650.7,0.8232]
[1729280464808,0.0399833,2651.3,2650.6,0.55]
[1729280464809,0.7723,2651.2,2650.6,0.55]
[1729280466108,0.09574729,2651.1,2650.6,0.55]
[1729280466929,0.09574729,2651.1,2650.7,0.7637]
[1729280467334,0.0399833,2651.3,2650.8,0.55]
[1729280467560,0.09564724,2651.0,2650.8,0.55]
[1729280467755,0.0399833,2651.3,2650.8,0.55]
[1729280467962,0.09558388,2650.9,2650.8,0.55]
[1729280468143,0.0399833,2651.3,2650.8,0.55]
[1729280468343,0.09558388,2650.9,2650.8,0.55]
[1729280468544,0.0399833,2651.3,2650.8,0.55]
[1729280469042,0.09577394,2651.2,2650.8,0.55]
[1729280469225,0.0399833,2651.3,2650.8,0.55]
[1729280469429,0.09577394,2651.2,2650.8,0.55]
[1729280469755,0.0399833,2651.3,2651.1,3.0]
[1729280469915,0.0399833,2651.3,2650.8,0.55]
[1729280474134,0.7595,2651.2,2650.8,0.55]
[1729280474461,0.7595,2651.2,2650.7,0.55]
[1729280475953,1.5413078,2651.2,2650.7,0.55]
[1729280477497,1.97313519,2651.2,2650.6,0.2817129]
[1729280477695,0.7818078,2651.0,2650.5,0.55]
[1729280478679,0.7818078,2651.0,2650.2,0.2817129]
[1729280478680,0.7854,2650.8,2650.3,0.2817129]
[1729280478870,0.7854,2650.8,2650.4,0.55]
[1729280480008,0.7818078,2650.9,2649.9,3.45117656]
[1729280480009,1.5672078,2650.7,2650.0,0.2817129]
[1729280480209,1.5672078,2650.7,2649.9,1.20817656]
[1729280480210,0.7818078,2650.5,2649.9,0.2817129]
[1729280480414,0.7818078,2650.5,2649.8,0.2817129]
[1729280480415,0.97728784,2650.4,2649.8,0.2817129]
[1729280480704,1.5654078,2650.1,2649.8,0.2817129]
[1729280480871,0.7818078,2650.0,2649.8,0.2817129]
[1729280481066,0.7836,2649.9,2649.7,0.79195099]
[1729280481457,0.09460524,2649.8,2649.7,0.79195099]
[1729280481851,0.87820524,2649.8,2649.4,0.02262403]
[1729280482144,0.7836,2649.7,2649.0,0.2817129]
[1729280482334,1.5654078,2649.7,2648.9,1.40202843]
[1729280482651,0.09435355,2649.6,2648.9,1.40202843]
[1729280482788,0.09435355,2649.6,2649.0,0.45625757]
[1729280482993,0.7836,2649.9,2649.1,0.8117]
[1729280483235,0.09101962,2649.8,2649.1,0.8117]
[1729280483938,0.09101962,2649.8,2649.2,0.55]
[1729280489440,0.7568,2650.1,2649.2,0.55]
[1729280489750,0.09118091,2650.0,2649.2,0.55]
[1729280490099,0.09118091,2650.0,2649.3,0.8141]
[1729280490342,0.09118091,2650.0,2649.4,0.55]
[1729280491320,0.7568,2650.1,2649.4,0.55]
[1729280491516,0.0911175,2649.9,2649.4,0.55]
[1729280491838,0.09105409,2649.8,2649.4,0.55]
[1729280492055,0.7568,2650.1,2649.4,0.55]
[1729280492253,0.09120058,2650.0,2649.4,0.55]
[1729280493975,0.09120058,2650.0,2649.6,0.55]
[1729280494518,0.09120058,2650.0,2649.4,0.55]
[1729280495819,0.7568,2650.1,2649.4,0.55]
[1729280497032,0.7568,2650.1,2649.1,0.7957]
[1729280497264,0.09120551,2650.0,2649.1,0.7957]
[1729280497474,0.7728,2649.9,2649.1,0.7957]
[1729280497624,0.09107869,2649.8,2649.1,0.7957]
[1729280498323,0.09107869,2649.8,2649.2,0.55]
[1729280499749,0.7728,2649.9,2649.2,0.55]
[1729280499935,0.09101527,2649.7,2649.2,0.55]
[1729280500137,0.09107869,2649.8,2649.2,0.55]
[1729280500366,0.7728,2649.9,2649.2,0.55]
[1729280500576,0.09101527,2649.7,2649.2,0.55]
[1729280500740,0.7728,2649.9,2649.2,0.55]
[1729280500741,0.09107869,2649.8,2649.2,0.55]
[1729280500954,0.7728,2649.9,2649.2,0.55]
[1729280501149,0.09101527,2649.7,2649.2,0.55]
[1729280501378,0.09107869,2649.8,2649.2,0.55]
[1729280501536,0.7728,2649.9,2649.2,0.55]
[1729280501738,0.09101527,2649.7,2649.2,0.55]
[1729280501981,0.09107869,2649.8,2649.2,0.55]
[1729280502165,0.7728,2649.9,2649.2,0.55]
[1729280502370,0.09101527,2649.7,2649.2,0.55]
[1729280502536,0.09107869,2649.8,2649.2,0.55]
[1729280502737,0.7728,2649.9,2649.2,0.55]
[1729280502981,0.09101527,2649.7,2649.2,0.55]
[1729280503133,0.09107869,2649.8,2649.2,0.55]
[1729280503337,0.7728,2649.9,2649.2,0.55]
[1729280503555,0.09101527,2649.7,2649.2,0.55]
[1729280503784,0.09102949,2649.8,2649.2,0.55]
[1729280503937,0.7728,2649.9,2649.4,0.55]
[1729280504138,0.09096607,2649.7,2649.2,0.55]
[1729280504482,0.7728,2649.9,2649.2,0.55]
[1729280504651,0.09102949,2649.8,2649.2,0.55]
[1729280505369,0.7922,2649.7,2648.9,3.59032843]
[1729280505567,0.7922,2649.7,2648.9,0.59032843]
[1729280506755,0.7922,2649.7,2649.0,0.55]
[1729280517885,0.7922,2649.7,2649.2,0.55]
[1729280518072,0.09090755,2649.6,2649.2,0.55]
[1729280518411,0.7922,2649.7,2649.6,3.0]
[1729280518612,0.7922,2649.7,2649.0,0.55]
[1729280518783,0.88317097,2649.7,2649.0,0.55]
[1729280518970,0.7922,2649.7,2649.0,0.55]
[1729280519864,0.87360755,2649.6,2648.9,0.59032843]
[1729280520781,0.87360755,2649.6,2648.7,0.1293117]
[1729280521395,0.87360755,2649.6,2648.8,0.55]
[1729280521708,0.7827,2649.5,2648.8,0.55]
[1729280522220,0.87346839,2649.4,2648.8,0.55]
[1729280522711,0.87346839,2649.4,2649.0,0.55]
[1729280523277,0.09076839,2649.4,2649.2,0.55]
[1729280523499,0.7868,2649.6,2649.2,0.55]
[1729280523700,0.09077769,2649.5,2649.1,0.55]
[1729280523998,0.09077769,2649.5,2649.1,0.83186863]
[1729280524217,0.09077769,2649.5,2649.1,0.55]
[1729280524411,0.09077769,2649.5,2649.3,0.55]
[1729280524592,0.09077769,2649.5,2649.3,0.83186863]
[1729280524789,0.09077769,2649.5,2649.1,0.55]
[1729280524995,0.09077769,2649.5,2649.2,0.28219079]
[1729280525331,0.7568,2649.4,2649.3,0.28219079]
[1729280525534,0.7818078,2649.4,2649.1,0.28241404]
[1729280525735,0.7763,2649.3,2648.8,0.45150527]
[1729280526050,0.09058738,2649.2,2648.9,0.28241332]
[1729280526342,1.5581078,2649.3,2649.0,0.28241332]
[1729280526509,0.09052393,2649.1,2648.8,0.45150527]
[1729280526702,1.5581078,2649.3,2648.9,0.28246441]
[1729280526904,0.09058738,2649.2,2649.0,0.28246441]
[1729280527104,0.7595,2649.1,2648.9,0.55]
[1729280527339,0.7595,2649.1,2649.0,0.28243791]
[1729280528133,0.7595,2649.1,2648.8,0.55]
[1729280528443,0.7595,2649.1,2648.9,0.28239946]
[1729280528602,0.7595,2649.1,2648.8,0.55]
[1729280528802,0.7595,2649.1,2648.9,0.28239734]
[1729280529041,0.7595,2649.1,2648.8,0.55]
[1729280529242,0.7595,2649.1,2648.9,0.28239807]
[1729280529442,0.7595,2649.1,2648.8,0.55]
[1729280530201,0.7595,2649.1,2648.7,0.1293117]
[1729280530437,0.7595,2649.1,2648.8,0.28232347]
[1729280530636,0.7595,2649.1,2648.7,0.1293117]
[1729280530831,0.7595,2649.1,2648.8,0.28232518]
[1729280531035,0.7595,2649.1,2648.9,0.28232518]
[1729280531208,0.7595,2649.1,2648.8,0.28232518]
[1729280531408,0.7595,2649.1,2648.7,0.1293117]
[1729280531607,0.7595,2649.1,2648.8,0.28229395]
[1729280531804,0.7595,2649.1,2648.7,0.1293117]
[1729280532117,0.7595,2649.1,2648.8,0.28229577]
[1729280532328,0.7595,2649.1,2648.7,0.1293117]
[1729280532643,0.7595,2649.1,2648.8,0.28227501]
[1729280533901,0.7595,2649.1,2648.8,0.55]
[1729280534107,0.7595,2649.1,2648.9,0.28224163]
[1729280536502,0.7595,2649.1,2648.8,0.55]
[1729280536703,0.7595,2649.1,2648.9,0.28224412]
[1729280537332,0.7595,2649.1,2648.8,0.55]
[1729280537536,0.7595,2649.1,2648.9,0.28226004]
[1729280537747,0.7595,2649.1,2648.8,0.55]
[1729280537931,0.7595,2649.1,2648.9,0.2822601]
[1729280538260,0.7595,2649.1,2648.8,0.55]
[1729280538467,0.7595,2649.1,2649.0,0.55]
[1729280538882,0.7595,2649.1,2648.9,0.55]
[1729280539021,0.7595,2649.1,2648.8,0.55]
[1729280539367,0.7595,2649.1,2649.0,0.55]
[1729280539534,0.7595,2649.1,2648.8,0.55]
[1729280539718,0.7595,2649.1,2648.9,0.28229254]
[1729280539915,0.7595,2649.1,2648.8,0.55]
[1729280540237,0.7595,2649.1,2648.9,0.28229258]
[1729280540437,0.7595,2649.1,2649.0,0.83230494]
[1729280541123,0.8465398,2649.1,2649.0,0.83230494]
[1729280542551,0.8465398,2649.1,2648.7,3.58097982]
[1729280542552,0.8465398,2649.1,2648.8,0.55]
[1729280542722,0.8465398,2649.1,2649.0,0.55]
[1729280542926,0.8465398,2649.1,2648.7,3.58097982]
[1729280542927,0.8465398,2649.1,2648.8,0.55]
[1729280543121,0.8465398,2649.1,2648.9,0.28237406]
[1729280543449,0.8465398,2649.1,2648.8,0.55]
[1729280543644,0.8465398,2649.1,2648.9,0.28237552]
[1729280543850,0.8465398,2649.1,2648.8,0.55]
[1729280544034,0.8465398,2649.1,2649.0,0.55]
[1729280544233,0.8465398,2649.1,2649.0,0.28236372]
[1729280544622,0.8465398,2649.1,2648.9,0.28236372]
[1729280544923,0.8465398,2649.1,2648.8,0.55]
[1729280545130,0.8465398,2649.1,2648.9,0.2823739]
[1729280545431,0.8465398,2649.1,2648.8,0.55]
[1729280545641,0.8465398,2649.1,2648.9,0.28237141]
[1729280545827,0.8465398,2649.1,2648.8,0.55]
[1729280546019,0.8465398,2649.1,2648.9,0.2823714]
[1729280546218,0.8465398,2649.1,2648.8,0.55]
[1729280546426,0.8465398,2649.1,2648.9,0.28237316]
[1729280546768,0.8465398,2649.1,2648.8,0.55]
[1729280546963,0.8465398,2649.1,2648.9,0.2823754]
[1729280547274,0.8465398,2649.1,2648.8,0.55]
[1729280547424,0.8465398,2649.1,2648.9,0.28237686]
[1729280547625,0.8465398,2649.1,2648.7,0.1293117]
[1729280547821,0.8465398,2649.1,2648.8,0.28238062]
[1729280548069,0.8465398,2649.1,2648.9,0.28238062]
[1729280548231,0.8465398,2649.1,2648.7,0.1293117]
[1729280548430,0.8465398,2649.1,2648.8,0.28238055]
[1729280548631,0.8465398,2649.1,2648.9,0.28238055]
[1729280548856,0.8465398,2649.1,2648.8,0.28239241]
[1729280549129,1.90848162,2649.1,2648.9,3.0]
[1729280549451,1.6283476,2649.1,2648.7,0.1293117]
[1729280550062,0.8465398,2649.1,2648.7,0.1293117]
[1729280550645,1.6283476,2649.1,2648.7,0.1293117]
[1729280551390,0.0870398,2649.1,2648.9,0.7594]
[1729280551678,0.0870398,2649.1,2649.0,0.55]
[1729280551981,1.5974078,2649.7,2649.0,2.20726985]
[1729280552132,0.08702256,2649.1,2649.0,1.3094]
[1729280552339,1.5974078,2649.7,2649.0,1.5916795]
[1729280552654,0.08733974,2649.6,2649.1,0.2822795]
[1729280552851,0.08733974,2649.6,2649.2,0.2822795]
[1729280553057,0.08733974,2649.6,2649.3,0.2822795]
[1729280553234,0.08733974,2649.6,2649.0,1.76115549]
[1729280553439,0.86914754,2649.6,2649.2,0.55]
[1729280553858,0.7818078,2649.5,2649.2,0.55]
[1729280554058,0.08732368,2649.4,2649.1,0.83230308]
[1729280554402,1.98859263,2649.7,2649.6,3.0]
[1729280554555,0.08726025,2649.3,2649.2,0.28230322]
[1729280554755,1.98859263,2649.7,2649.6,3.0]
[1729280554955,0.8156,2649.7,2649.6,3.0]
[1729280555171,0.8156,2649.7,2649.2,0.55]
[1729280555397,0.8156,2649.7,2649.1,0.55]
[1729280555805,1.98859263,2649.7,2649.6,3.0]
[1729280555957,0.08743578,2649.6,2649.2,0.28230895]
[1729280556301,2.34385091,2649.7,2649.6,3.0]
[1729280556505,1.17085828,2649.7,2649.6,3.0]
[1729280556662,1.17085828,2649.7,2649.2,0.28230794]
[1729280556995,0.8156,2649.7,2649.6,3.0]
[1729280557199,0.8156,2649.7,2649.2,0.28230794]
[1729280557360,0.8156,2649.7,2649.6,3.0]
[1729280557562,0.8156,2649.7,2649.2,0.28230794]
[1729280557791,0.8156,2649.7,2649.6,3.0]
[1729280557996,0.8156,2649.7,2649.2,0.28230794]
[1729280558191,0.8156,2649.7,2649.6,3.0]
[1729280558753,0.8156,2649.7,2649.3,0.28231088]
[1729280558970,0.8156,2649.7,2649.2,0.28230794]
[1729280559384,0.8156,2649.7,2649.3,0.28231796]
[1729280559585,0.8156,2649.7,2649.2,0.28230794]
[1729280559801,0.8156,2649.7,2649.3,0.28231796]
[1729280559958,1.17299263,2649.8,2649.4,0.55]
[1729280560310,1.96009263,2650.2,2649.6,0.55]
[1729280560596,0.7871,2650.2,2649.8,0.55]
[1729280560757,0.7871,2650.4,2649.8,0.55]
[1729280560958,0.7871,2650.4,2649.9,0.28220878]
[1729280562392,0.7871,2650.4,2649.8,0.83220878]
[1729280562708,0.7871,2650.4,2650.2,3.0]
[1729280562912,0.7871,2650.4,2649.8,0.83220878]
[1729280563285,0.7871,2650.4,2649.8,0.83198349]
[1729280563500,0.7871,2650.4,2650.2,3.0]
[1729280563697,0.7871,2650.4,2649.8,0.55]
[1729280564217,0.7726,2650.6,2649.9,0.8298]
[1729280564512,1.95731931,2651.0,2649.5,0.28198349]
[1729280564513,0.7726,2650.9,2650.2,0.55]
[1729280564721,1.12355828,2650.9,2650.2,0.55]
[1729280565833,0.7726,2650.9,2650.2,0.55]
[1729280566037,0.7726,2650.9,2650.5,3.0]
[1729280566412,0.7726,2650.9,2650.2,0.55]
[1729280569197,0.8227,2651.2,2650.3,0.7897]
[1729280569400,0.8227,2651.2,2650.6,0.55]
[1729280569705,0.8227,2651.2,2650.9,3.0]
[1729280569922,0.8227,2651.2,2650.6,0.55]
[1729280570944,0.07495206,2651.1,2650.6,0.55]
[1729280571124,0.07495206,2651.1,2650.9,3.0]
[1729280571448,0.07495206,2651.1,2650.6,0.55]
[1729280571799,0.7564,2651.0,2650.3,0.8061]
[1729280571994,0.7564,2651.0,2650.4,0.55]
[1729280572244,0.07487991,2650.9,2650.4,0.55]
[1729280574932,0.7564,2651.0,2650.9,3.0]
[1729280575276,0.7564,2651.0,2650.4,0.55]
[1729280575482,0.7564,2651.0,2650.4,3.55]
[1729280575637,0.07242256,2650.9,2650.4,0.55]
[1729280575983,0.7564,2651.0,2650.4,0.55]
[1729280577706,0.7931,2651.2,2650.5,0.7643]
[1729280577915,0.7931,2651.2,2650.6,0.55]
[1729280578071,0.07260384,2651.1,2650.6,0.55]
[1729280578267,0.7931,2651.2,2650.7,0.7643]
[1729280578481,0.0399833,2651.3,2650.8,0.55]
[1729280578782,0.0399833,2651.3,2650.7,0.7643]
[1729280578783,0.0399833,2651.3,2651.0,0.55]
[1729280579095,0.0399833,2651.3,2650.8,0.55]
[1729280579271,0.07266719,2651.2,2650.8,0.55]
[1729280579616,0.0399833,2651.3,2650.8,0.55]
[1729280580169,0.0399833,2651.3,2650.9,0.777]
[1729280580373,0.06800289,2651.2,2651.0,0.55]
[1729280580636,0.0399833,2651.3,2651.0,0.55]
[1729280588527,0.0399833,2651.3,2650.8,0.55]
[1729280588528,0.8308,2651.2,2650.8,0.55]
[1729280591049,0.0399833,2651.3,2650.8,0.55]
[1729280594153,0.0399833,2651.3,2651.0,0.55]
[1729280594348,0.0399833,2651.3,2650.8,0.55]
[1729280604051,0.0399833,2651.3,2651.0,0.55]
[1729280604450,0.0399833,2651.3,2650.8,0.55]
[1729280604768,0.06813234,2651.2,2650.8,0.55]
[1729280604974,0.0399833,2651.3,2650.7,0.55]
[1729280604975,0.7626,2651.1,2650.7,0.55]
[1729280605821,0.06798077,2651.0,2650.7,0.55]
[1729280606153,0.7561,2650.9,2650.3,0.79174671]
[1729280606338,0.06785404,2650.8,2650.3,0.79174671]
[1729280606537,0.7561,2650.7,2650.3,0.79174671]
[1729280606745,0.0677273,2650.6,2650.3,0.79174671]
[1729280613303,0.0677273,2650.6,2650.4,0.55]
[1729280614059,0.0677273,2650.6,2650.5,0.55]
[1729280614495,0.0677273,2650.6,2650.5,1.3421]
[1729280614765,0.8296,2651.1,2650.6,0.55]
[1729280616005,0.0676571,2651.0,2650.6,0.55]
[1729280620507,0.84976361,2651.0,2650.6,0.55]
[1729280620940,0.0676571,2651.0,2650.6,0.55]
[1729280622042,0.0676571,2651.0,2650.4,0.55]
[1729280622348,0.7508,2650.9,2650.4,0.55]
[1729280622706,0.06753037,2650.8,2650.4,0.55]
[1729280624144,0.06753037,2650.8,2650.6,0.55]
[1729280624353,0.06753037,2650.8,2650.4,0.55]
[1729280625664,0.7662,2650.7,2650.3,0.79174671]
[1729280626042,0.06518949,2650.6,2650.3,0.79174671]
[1729280626953,0.06518949,2650.6,2650.4,0.55]
[1729280633098,0.06518949,2650.6,2650.3,0.79174671]
[1729280636167,0.06518949,2650.6,2650.4,0.55]
[1729280648484,0.06372509,2650.6,2650.4,0.55]
[1729280648682,0.06372509,2650.6,2650.3,0.79174671]
[1729280650668,0.8458316,2650.6,2650.3,0.79174671]
[1729280654811,0.06372509,2650.6,2650.3,0.79174671]
[1729280655999,0.8458316,2650.6,2650.3,0.79174671]
[1729280656427,0.8458316,2650.6,2650.4,0.55]
[1729280656428,0.06372509,2650.6,2650.4,0.55]
[1729280657017,0.78210651,2650.8,2650.4,0.55]
[1729280657214,0.06525634,2650.7,2650.4,0.55]
[1729280657443,0.78210651,2650.8,2650.4,0.55]
[1729280657748,0.06525634,2650.7,2650.4,0.55]
[1729280658048,0.78210651,2650.8,2650.4,0.55]
[1729280658545,0.06525634,2650.7,2650.4,0.55]
[1729280658920,0.78210651,2650.8,2650.4,0.55]
[1729280659427,0.06525634,2650.7,2650.4,0.55]
[1729280659741,0.78210651,2650.8,2650.4,0.55]
[1729280659944,0.06519296,2650.6,2650.4,0.55]
[1729280660105,0.78210651,2650.8,2650.4,0.55]
[1729280660307,0.06512958,2650.5,2650.4,0.55]
[1729280660547,0.78210651,2650.8,2650.4,0.55]
[1729280660744,0.06512958,2650.5,2650.4,0.55]
[1729280660948,0.78210651,2650.8,2650.4,0.55]
[1729280661240,0.06525634,2650.7,2650.4,0.55]
[1729280661439,0.78210651,2650.8,2650.4,0.55]
[1729280661641,0.06525634,2650.7,2650.4,0.55]
[1729280661807,0.78210651,2650.8,2650.4,0.55]
[1729280662153,0.06525634,2650.7,2650.4,0.55]
[1729280662704,0.78210651,2650.8,2650.4,0.55]
[1729280662905,0.06519296,2650.6,2650.4,0.55]
[1729280663100,0.78210651,2650.8,2650.4,0.55]
[1729280663308,0.06516445,2650.5,2650.4,1.00172963]
[1729280663506,0.78210651,2650.8,2650.4,0.55]
[1729280664007,0.0652912,2650.7,2650.4,1.0018217]
[1729280664228,0.78210651,2650.8,2650.4,1.00186604]
[1729280664428,0.0652912,2650.7,2650.4,1.00186604]
[1729280664641,0.78210651,2650.8,2650.4,1.00186604]
[1729280664821,0.0652912,2650.7,2650.4,1.00186604]
[1729280665022,0.78210651,2650.8,2650.4,1.00186604]
[1729280665236,0.84739771,2650.7,2650.4,1.00186604]
[1729280665437,0.84739771,2650.7,2650.5,0.7873]
[1729280665640,0.0652912,2650.7,2650.5,0.7873]
[1729280665854,0.78210651,2650.8,2650.5,0.7873]
[1729280666054,0.0652912,2650.7,2650.5,1.239203]
[1729280666227,0.78210651,2650.8,2650.5,0.7873]
[1729280666542,0.0652912,2650.7,2650.5,1.23925265]
[1729280666944,0.78210651,2650.8,2650.5,1.23925265]
[1729280667148,0.06522783,2650.6,2650.5,1.78925265]
[1729280667656,0.78210651,2650.8,2650.5,1.23925265]
[1729280667822,0.0652912,2650.7,2650.5,0.7873]
[1729280668023,0.78210651,2650.7,2650.5,0.7873]
[1729280668253,0.06522783,2650.6,2650.5,1.3373]
[1729280668937,0.06522783,2650.6,2650.5,0.55]
[1729280669335,1.17299263,2650.8,2650.4,1.00208]
[1729280669543,0.06522783,2650.6,2650.4,3.55]
[1729280669872,0.06516445,2650.5,2650.4,0.55]
[1729280670042,0.06516445,2650.5,2650.4,4.00207953]
[1729280670354,1.17299263,2650.8,2650.4,4.00207953]
[1729280670540,0.06516445,2650.5,2650.4,0.55]
[1729280670741,1.17299263,2650.8,2650.4,4.00211736]
[1729280671058,1.17299263,2650.8,2650.4,0.55]
[1729280671215,0.0652912,2650.7,2650.4,0.55]
[1729280671415,1.17299263,2650.8,2650.4,0.55]
[1729280671640,0.0652912,2650.7,2650.4,0.55]
[1729280671839,1.96959263,2650.8,2650.4,0.55]
[1729280672022,0.0652912,2650.7,2650.4,0.55]
[1729280672330,1.96959263,2650.8,2650.4,0.55]
[1729280672536,0.06522783,2650.6,2650.4,0.55]
[1729280672737,1.96959263,2650.8,2650.4,0.55]
[1729280673014,1.96959263,2650.8,2650.3,0.79174671]
[1729280673015,0.8197,2650.6,2650.3,0.79174671]
[1729280673213,0.06516445,2650.5,2650.3,0.79174671]
[1729280675435,1.17299263,2650.7,2650.3,0.79174671]
[1729280675635,0.06522783,2650.6,2650.3,0.79174671]
[1729280676634,0.06522783,2650.6,2650.4,0.55]
[1729280676839,0.06522783,2650.6,2650.5,1.3189]
[1729280677068,1.17299263,2650.8,2650.6,0.55]
[1729280677265,0.06523894,2650.7,2650.6,0.55]
[1729280677424,1.17299263,2650.8,2650.6,0.55]
[1729280677622,0.06523894,2650.7,2650.6,0.55]
[1729280677857,1.17299263,2650.8,2650.4,1.00213246]
[1729280678129,0.06523894,2650.7,2650.4,0.55]
[1729280678454,1.17299263,2650.8,2650.4,0.55]
[1729280678630,0.06523894,2650.7,2650.4,0.55]
[1729280678833,1.17299263,2650.8,2650.4,0.55]
[1729280679071,0.06523894,2650.7,2650.4,0.55]
[1729280679271,1.95129263,2650.7,2650.3,0.79174671]
[1729280679571,0.06517556,2650.6,2650.3,0.79174671]
[1729280694436,0.7813,2650.5,2650.3,0.79174671]
[1729280694615,1.95429263,2650.4,2650.3,0.79174671]
[1729280694927,2.0172234,2650.4,2650.3,0.79174671]
[1729280695387,2.0172234,2650.4,2649.9,0.45221983]
[1729280695589,2.0172234,2650.4,2650.0,0.45221983]
[1729280695822,2.0172234,2650.4,2649.8,0.45221983]
[1729280695998,2.0172234,2650.4,2649.9,0.45221983]
[1729280696630,2.0172234,2650.4,2650.0,0.45221983]
[1729280696828,2.0172234,2650.4,2649.8,1.00205423]
[1729280697040,2.0172234,2650.4,2649.9,0.45205423]
[1729280697244,2.0172234,2650.4,2649.9,0.45198887]
[1729280698835,0.84423077,2650.4,2650.0,0.55]
[1729280699022,0.84423077,2650.4,2649.9,0.55]
[1729280699205,0.84423077,2650.4,2649.9,1.00198887]
[1729280699405,0.84423077,2650.4,2649.9,0.55]
[1729280699635,0.84423077,2650.4,2649.9,1.00198887]
[1729280699937,0.84423077,2650.4,2649.9,0.55]